fUSD/lending_fUSD_20260405
["ID","MTS","AMOUNT","RATE_DAILY","PERIOD"]
[419748450,1775353850869,-150.0,0.0001488,2]
[419748451,1775353850877,-785.67,0.00014882,2]
[419748452,1775353850887,-150.0,0.00014884,2]
[419748453,1775353850896,-150.0,0.00014891,2]
[419748454,1775353850905,-150.0,0.00014896,2]
[419748455,1775353850916,-160.9517,0.000149,2]
[419748456,1775353850925,-150.0,0.000149,2]
[419748457,1775353850935,-150.0,0.00014908,2]
[419748458,1775353850944,-150.0,0.00014908,2]
[419748459,1775353850953,-150.0,0.00014916,2]
[419748460,1775353850962,-150.0,0.0001492,2]
[419748461,1775353850971,-150.0,0.00014922,2]
[419748462,1775353850980,-150.0,0.00014923,2]
[419748463,1775353850989,-150.0,0.00014923,2]
[419748464,1775353850998,-150.0,0.00014931,2]
[419748465,1775353851008,-200.0,0.00014934,2]
[419748466,1775353851017,-869.74977755,0.00014934,2]
[419748467,1775353851027,-150.0,0.00014941,2]
[419748468,1775353851036,-150.0,0.00014946,2]
[419748469,1775353851045,-150.0,0.00014956,2]
[419748470,1775353851055,-1105.5079588,0.00014962,2]
[419748471,1775353851064,-1752.27845808,0.00014962,2]
[419748472,1775353851073,-3634.19823712,0.00014962,2]
[419748473,1775353851082,-150.0,0.00014964,2]
[419748474,1775353851092,-150.0,0.00014965,2]
[419748475,1775353851101,-150.0,0.00014966,2]
[419748476,1775353851111,-150.0,0.00014969,2]
[419748477,1775353851120,-150.0,0.00014969,2]
[419748478,1775353851129,-150.0,0.00014974,2]
[419748479,1775353851139,-150.0,0.0001499,2]
[419748480,1775353851148,-150.0,0.0001499,2]
[419748481,1775353851157,-150.0,0.00014991,2]
[419748482,1775353851167,-150.0,0.00014992,2]
[419748483,1775353851176,-1389.4,0.00014997,2]
[419748484,1775353851186,-300.0,0.00015,2]
[419748485,1775353851195,-150.0,0.00015,2]
[419748486,1775353851205,-150.0,0.00015006,2]
[419748487,1775353851214,-666.1785847,0.00015011,2]
[419748488,1775353851223,-150.0,0.00015014,2]
[419748489,1775353851233,-150.0,0.00015014,2]
[419748490,1775353851242,-150.0,0.00015014,2]
[419748491,1775353851252,-150.0,0.00015014,2]
[419748492,1775353851261,-150.0,0.00015029,2]
[419748493,1775353851271,-150.0,0.00015035,2]
[419748494,1775353851280,-150.0,0.00015037,2]
[419748495,1775353851289,-150.0,0.00015039,2]
[419748496,1775353851299,-150.0,0.00015041,2]
[419748497,1775353851308,-883.64,0.00015047,2]
[419748498,1775353851318,-150.0,0.00015048,2]
[419748499,1775353851328,-150.0,0.0001506,2]
[419748500,1775353851338,-150.0,0.0001506,2]
[419748501,1775353851348,-150.0,0.00015063,2]
[419748502,1775353851357,-150.0,0.00015065,2]
[419748503,1775353851367,-900.0,0.00015068,2]
[419748504,1775353851376,-800.96674089,0.00015068,2]
[419748505,1775353851385,-150.0,0.0001507,2]
[419748506,1775353851395,-150.0,0.00015083,2]
[419748507,1775353851404,-150.0,0.00015088,2]
[419748508,1775353851414,-150.0,0.0001509,2]
[419748509,1775353851425,-150.0,0.00015101,2]
[419748510,1775353851435,-150.0,0.00015105,2]
[419748511,1775353851445,-150.0,0.00015106,2]
[419748512,1775353851455,-150.0,0.00015106,2]
[419748513,1775353851466,-150.0,0.00015107,2]
[419748514,1775353851475,-150.0,0.00015113,2]
[419748515,1775353851485,-150.0,0.00015113,2]
[419748516,1775353851495,-150.0,0.00015121,2]
[419748517,1775353851504,-150.0,0.00015128,2]
[419748518,1775353851514,-150.0,0.00015132,2]
[419748519,1775353851526,-150.0,0.00015137,2]
[419748520,1775353851536,-150.0,0.00015138,2]
[419748521,1775353851547,-150.0,0.00015139,2]
[419748522,1775353851556,-150.0,0.00015151,2]
[419748523,1775353851566,-150.0,0.00015151,2]
[419748524,1775353851576,-902.56,0.00015156,2]
[419748525,1775353851585,-500.0,0.00015157,2]
[419748526,1775353851595,-500.0,0.00015157,2]
[419748527,1775353851604,-639.6,0.00015157,2]
[419748528,1775353851614,-923.76,0.00015157,2]
[419748529,1775353851623,-506.02,0.00015157,2]
[419748530,1775353851633,-150.0,0.00015162,2]
[419748531,1775353851643,-150.0,0.00015174,2]
[419748532,1775353851653,-150.0,0.00015174,2]
[419748533,1775353851663,-150.0,0.00015174,2]
[419748534,1775353851672,-150.0,0.00015174,2]
[419748535,1775353851683,-150.0,0.00015174,2]
[419748536,1775353851693,-150.0,0.00015174,2]
[419748537,1775353851705,-150.0,0.00015174,2]
[419748538,1775353851714,-150.0,0.00015174,2]
[419748539,1775353851724,-150.0,0.00015186,2]
[419748540,1775353851736,-150.0,0.00015197,2]
[419748541,1775353851746,-150.0,0.00015197,2]
[419748542,1775353851755,-478.15461534,0.00015198,2]
[419748543,1775353851764,-578.20924308,0.00015199,2]
[419748544,1775353851777,-500.0,0.00015199,2]
[419748545,1775353851787,-500.0,0.00015199,2]
[419748546,1775353851797,-831.1559529,0.00015199,2]
[419748547,1775353851808,-200.0,0.00015199,2]
[419748548,1775353851817,-500.0,0.00015199,2]
[419748549,1775353851827,-209.40437684,0.00015199,2]
[419748550,1775353851837,-1428.38747117,0.00015199,2]
[419748551,1775353851847,-500.0,0.00015199,2]
[419748552,1775353851857,-500.0,0.00015199,2]
[419748553,1775353851866,-500.0,0.00015199,2]
[419748554,1775353851876,-151.0,0.00015199,2]
[419748555,1775353851885,-500.0,0.00015199,2]
[419748556,1775353851897,-151.0,0.00015199,2]
[419748557,1775353851908,-500.0,0.00015199,2]
[419748558,1775353851919,-151.0,0.00015199,2]
[419748559,1775353851929,-500.0,0.00015199,2]
[419748560,1775353851939,-500.0,0.00015199,2]
[419748561,1775353851950,-154.76515316,0.00015199,2]
[419748562,1775353851960,-500.0,0.00015199,2]
[419748563,1775353851969,-500.0,0.00015199,2]
[419748564,1775353851978,-250.0,0.00015199,2]
[419748565,1775353851988,-250.0,0.00015199,2]
[419748566,1775353851998,-209.40437684,0.00015199,2]
[419748567,1775353852009,-250.0,0.00015199,2]
[419748568,1775353852018,-250.0,0.00015199,2]
[419748569,1775353852028,-250.0,0.00015199,2]
[419748570,1775353852037,-250.0,0.00015199,2]
[419748571,1775353852046,-250.0,0.00015199,2]
[419748572,1775353852056,-250.0,0.00015199,2]
[419748573,1775353852066,-250.0,0.00015199,2]
[419748574,1775353852076,-250.0,0.00015199,2]
[419748575,1775353852085,-250.0,0.00015199,2]
[419748576,1775353852095,-500.0,0.00015199,2]
[419748577,1775353852104,-500.0,0.00015199,2]
[419748578,1775353852114,-500.0,0.00015199,2]
[419748579,1775353852124,-500.0,0.00015199,2]
[419748580,1775353852134,-174.61919141,0.00015199,2]
[419748581,1775353852144,-500.0,0.00015199,2]
[419748582,1775353852154,-500.0,0.00015199,2]
[419748583,1775353852165,-500.0,0.00015199,2]
[419748584,1775353852177,-500.0,0.00015199,2]
[419748585,1775353852188,-743.50770149,0.00015199,2]
[419748586,1775353852198,-500.0,0.00015199,2]
[419748587,1775353852209,-500.0,0.00015199,2]
[419748588,1775353852218,-500.0,0.00015199,2]
[419748589,1775353852228,-151.0,0.00015199,2]
[419748590,1775353852238,-200.0,0.00015199,2]
[419748591,1775353852247,-157.03985341,0.00015199,2]
[419748592,1775353852257,-279.9045709,0.00015199,2]
[419748593,1775353852268,-170.0,0.00015199,2]
[419748594,1775353852278,-170.0,0.00015199,2]
[419748595,1775353852289,-170.0,0.00015199,2]
[419748596,1775353852298,-170.0,0.00015199,2]
[419748597,1775353852308,-170.0,0.00015199,2]
[419748598,1775353852318,-500.0,0.00015199,2]
[419748599,1775353852329,-170.0,0.00015199,2]
[419748600,1775353852338,-500.0,0.00015199,2]
[419748601,1775353852349,-170.0,0.00015199,2]
[419748602,1775353852360,-500.0,0.00015199,2]
[419748603,1775353852370,-170.0,0.00015199,2]
[419748604,1775353852380,-500.0,0.00015199,2]
[419748605,1775353852390,-500.0,0.00015199,2]
[419748606,1775353852399,-170.0,0.00015199,2]
[419748607,1775353852409,-170.0,0.00015199,2]
[419748608,1775353852419,-170.0,0.00015199,2]
[419748609,1775353852428,-7562.88024218,0.000152,2]
[419748610,1775353852438,-5000.0,0.000152,2]
[419748611,1775353852447,-5000.0,0.000152,2]
[419748612,1775353852458,-5000.0,0.000152,2]
[419748613,1775353852468,-5000.0,0.000152,2]
[419748614,1775353852480,-150.0,0.00015209,2]
[419748615,1775353852490,-150.0,0.0001521,2]
[419748616,1775353852499,-150.0,0.00015211,2]
[419748617,1775353852509,-150.0,0.00015216,2]
[419748618,1775353852519,-150.0,0.0001522,2]
[419748619,1775353852528,-150.0,0.00015227,2]
[419748620,1775353852538,-150.0,0.00015235,2]
[419748621,1775353852547,-150.0,0.00015235,2]
[419748622,1775353852556,-150.0,0.00015241,2]
[419748623,1775353852566,-150.0,0.00015242,2]
[419748624,1775353852575,-150.0,0.00015242,2]
[419748625,1775353852585,-150.0,0.00015243,2]
[419748626,1775353852594,-150.0,0.00015247,2]
[419748627,1775353852604,-500.0,0.00015254,2]
[419748628,1775353852613,-151.0,0.00015254,2]
[419748629,1775353852623,-150.0,0.00015258,2]
[419748630,1775353852633,-150.0,0.0001526,2]
[419748631,1775353852642,-150.0,0.00015265,2]
[419748632,1775353852651,-1389.4,0.00015271,2]
[419748633,1775353852661,-150.0,0.00015278,2]
[419748634,1775353852670,-150.0,0.00015283,2]
[419748635,1775353852679,-150.0,0.00015285,2]
[419748636,1775353852688,-150.0,0.00015288,2]
[419748637,1775353852698,-150.0,0.00015288,2]
[419748638,1775353852707,-150.0,0.000153,2]
[419748639,1775353852717,-150.0,0.00015307,2]
[419748640,1775353852726,-500.0,0.00015309,2]
[419748641,1775353852735,-151.0,0.00015309,2]
[419748642,1775353852744,-150.0,0.00015309,2]
[419748643,1775353852753,-150.0,0.00015311,2]
[419748644,1775353852762,-150.0,0.00015313,2]
[419748645,1775353852772,-150.0,0.00015319,2]
[419748646,1775353852781,-150.0,0.00015334,2]
[419748647,1775353852791,-150.0,0.00015334,2]
[419748648,1775353852800,-150.0,0.00015334,2]
[419748649,1775353852809,-150.0,0.00015334,2]
[419748650,1775353852819,-150.0,0.00015342,2]
[419748651,1775353852828,-2000.0,0.00015342,2]
[419748652,1775353852837,-2000.0,0.00015342,2]
[419748653,1775353852847,-1313.52916887,0.00015342,2]
[419748654,1775353852856,-568.54783961,0.00015342,2]
[419748655,1775353852866,-1506.85879324,0.00015342,2]
[419748656,1775353852875,-915.49762245,0.00015342,2]
[419748657,1775353852885,-505.32828533,0.00015342,2]
[419748658,1775353852976,-2000.0,0.00015342,2]
[419748659,1775353852985,-2000.0,0.00015342,2]
[419748660,1775353852994,-2000.0,0.00015342,2]
[419748661,1775353853003,-2000.0,0.00015342,2]
[419748662,1775353853012,-2000.0,0.00015342,2]
[419748663,1775353853021,-2000.0,0.00015342,2]
[419748664,1775353853031,-2000.0,0.00015342,2]
[419748665,1775353853040,-2000.0,0.00015342,2]
[419748666,1775353853050,-2000.0,0.00015342,2]
[419748667,1775353853060,-2000.0,0.00015342,2]
[419748668,1775353853069,-2000.0,0.00015342,2]
[419748669,1775353853079,-692.44434622,0.00015342,2]
[419748670,1775353853088,-1689.37318328,0.00015342,2]
[419748671,1775353853097,-2000.0,0.00015342,2]
[419748672,1775353853107,-643.48326881,0.00015342,2]
[419748673,1775353853132,-2087.30238441,0.00015342,2]
[419748674,1775353853141,-2000.0,0.00015342,2]
[419748675,1775353853151,-1347.07116371,0.00015342,2]
[419748676,1775353853160,-2000.0,0.00015342,2]
[419748677,1775353853169,-150.0,0.00015348,2]
[419748678,1775353853179,-150.0,0.00015355,2]
[419748679,1775353853189,-150.0,0.00015357,2]
[419748680,1775353853199,-150.0,0.00015358,2]
[419748681,1775353853208,-150.0,0.00015358,2]
[419748682,1775353853217,-500.0,0.00015364,2]
[419748683,1775353853227,-151.0,0.00015364,2]
[419748684,1775353853236,-150.0,0.00015374,2]
[419748685,1775353853246,-150.0,0.00015379,2]
[419748686,1775353853255,-150.0,0.00015379,2]
[419748687,1775353853264,-150.0,0.00015382,2]
[419748688,1775353853273,-150.0,0.00015383,2]
[419748689,1775353853283,-150.0,0.00015384,2]
[419748690,1775353853293,-350.0,0.00015385,2]
[419748691,1775353853303,-150.0,0.00015392,2]
[419748692,1775353853312,-150.0,0.00015402,2]
[419748693,1775353853321,-150.0,0.00015407,2]
[419748694,1775353853331,-150.0,0.00015417,2]
[419748695,1775353853340,-500.0,0.00015419,2]
[419748696,1775353853351,-151.0,0.00015419,2]
[419748697,1775353853360,-150.0,0.00015425,2]
[419748698,1775353853369,-150.0,0.00015425,2]
[419748699,1775353853378,-150.0,0.00015426,2]
[419748700,1775353853388,-150.0,0.00015428,2]
[419748701,1775353853397,-150.0,0.00015432,2]
[419748702,1775353853407,-150.0,0.0001544,2]
[419748703,1775353853417,-150.0,0.0001544,2]
[419748704,1775353853426,-150.0,0.00015448,2]
[419748705,1775353853436,-150.0,0.00015452,2]
[419748706,1775353853446,-150.0,0.00015457,2]
[419748707,1775353853455,-150.0,0.00015464,2]
[419748708,1775353853464,-150.0,0.00015468,2]
[419748709,1775353853474,-150.0,0.00015471,2]
[419748710,1775353853483,-150.0,0.00015471,2]
[419748711,1775353853492,-500.0,0.00015474,2]
[419748712,1775353853502,-151.0,0.00015474,2]
[419748713,1775353853511,-150.0,0.00015481,2]
[419748714,1775353853520,-150.0,0.00015481,2]
[419748715,1775353853530,-201.99389817,0.00015482,2]
[419748716,1775353853540,-150.0,0.00015486,2]
[419748717,1775353853550,-150.0,0.00015493,2]
[419748718,1775353853559,-730.84360012,0.000155,2]
[419748719,1775353853568,-150.0,0.00015501,2]
[419748720,1775353853578,-150.0,0.00015506,2]
[419748721,1775353853587,-150.0,0.00015507,2]
[419748722,1775353853596,-4000.0,0.00015507,2]
[419748723,1775353853605,-150.0,0.0001551,2]
[419748724,1775353853615,-1481.105408,0.00015513,2]
[419748725,1775353853623,-150.0,0.00015516,2]
[419748726,1775353853632,-150.0,0.00015516,2]
[419748727,1775353853641,-150.0,0.00015521,2]
[419748728,1775353853651,-500.0,0.00015529,2]
[419748729,1775353853661,-151.0,0.00015529,2]
[419748730,1775353853670,-150.0,0.0001553,2]
[419748731,1775353853679,-8422.99193755,0.00015535,2]
[419748732,1775353853689,-871.95012592,0.00015535,2]
[419748733,1775353853698,-150.0,0.00015537,2]
[419748734,1775353853709,-150.0,0.00015539,2]
[419748735,1775353853718,-1389.44991205,0.00015545,2]
[419748736,1775353853728,-150.0,0.00015547,2]
[419748737,1775353853738,-5888.0,0.00015547,2]
[419748738,1775353853748,-150.0,0.00015552,2]
[419748739,1775353853758,-150.0,0.00015555,2]
[419748740,1775353853767,-150.0,0.00015556,2]
[419748741,1775353853777,-192.04,0.00015556,2]
[419748742,1775353853787,-150.0,0.00015562,2]
[419748743,1775353853796,-150.0,0.00015562,2]
[419748744,1775353853806,-150.0,0.00015573,2]
[419748745,1775353853816,-150.0,0.00015573,2]
[419748746,1775353853826,-150.0,0.00015573,2]
[419748747,1775353853835,-150.0,0.00015579,2]
[419748748,1775353853845,-500.0,0.00015584,2]
[419748749,1775353853854,-151.0,0.00015584,2]
[419748750,1775353853864,-150.0,0.00015585,2]
[419748751,1775353853874,-150.0,0.00015591,2]
[419748752,1775353853883,-150.0,0.00015594,2]
[419748753,1775353853894,-2000.0,0.00015601,2]
[419748754,1775353853903,-150.0,0.00015604,2]
[419748755,1775353853913,-150.0,0.00015604,2]
[419748756,1775353853923,-150.0,0.00015608,2]
[419748757,1775353853932,-150.0,0.00015608,2]
[419748758,1775353853942,-150.0,0.0001561,2]
[419748759,1775353853952,-150.0,0.00015625,2]
[419748760,1775353853961,-150.0,0.00015629,2]
[419748761,1775353853971,-150.0,0.0001563,2]
[419748762,1775353853980,-150.0,0.00015636,2]
[419748763,1775353853991,-192.04,0.00015638,2]
[419748764,1775353854000,-500.0,0.00015639,2]
[419748765,1775353854010,-151.0,0.00015639,2]
[419748766,1775353854019,-150.0,0.0001564,2]
[419748767,1775353854028,-19842.52,0.00015642,2]
[419748768,1775353854038,-150.0,0.00015646,2]
[419748769,1775353854048,-150.0,0.00015653,2]
[419748770,1775353854058,-150.0,0.00015653,2]
[419748771,1775353854067,-150.0,0.00015653,2]
[419748772,1775353854077,-150.0,0.00015653,2]
[419748773,1775353854086,-150.0,0.0001566,2]
[419748774,1775353854096,-5888.0,0.00015671,2]
[419748775,1775353854124,-150.0,0.00015676,2]
[419748776,1775353854134,-150.0,0.00015678,2]
[419748777,1775353854143,-150.0,0.00015678,2]
[419748778,1775353854153,-500.0,0.00015679,2]
[419748779,1775353854163,-500.0,0.00015679,2]
[419748780,1775353854173,-639.6,0.00015679,2]
[419748781,1775353854183,-923.76,0.00015679,2]
[419748782,1775353854192,-506.02,0.00015679,2]
[419748783,1775353854202,-150.0,0.00015682,2]
[419748784,1775353854211,-500.0,0.00015694,2]
[419748785,1775353854222,-151.0,0.00015694,2]
[419748786,1775353854231,-150.0,0.00015695,2]
[419748787,1775353854241,-150.0,0.00015699,2]
[419748788,1775353854250,-150.0,0.00015699,2]
[419748789,1775353854260,-2000.0,0.00015701,2]
[419748790,1775353854270,-150.0,0.00015702,2]
[419748791,1775353854279,-150.0,0.00015706,2]
[419748792,1775353854288,-150.0,0.00015718,2]
[419748793,1775353854298,-192.03651742,0.00015719,2]
[419748794,1775353854307,-150.0,0.0001572,2]
[419748795,1775353854316,-150.0,0.00015722,2]
[419748796,1775353854327,-5888.0,0.00015722,2]
[419748797,1775353854336,-150.0,0.00015727,2]
[419748798,1775353854345,-150.0,0.00015727,2]
[419748799,1775353854354,-150.0,0.0001573,2]
[419748800,1775353854363,-150.0,0.00015744,2]
[419748801,1775353854372,-150.0,0.00015744,2]
[419748802,1775353854382,-200.0,0.00015747,2]
[419748803,1775353854391,-217.15233878,0.00015747,2]
[419748804,1775353854401,-1481.23780761,0.00015747,2]
[419748805,1775353854411,-339.62894544,0.00015747,2]
[419748806,1775353854420,-181.08010149,0.00015747,2]
[419748807,1775353854430,-771.01748645,0.00015747,2]
[419748808,1775353854439,-200.0,0.00015747,2]
[419748809,1775353854448,-290.26104003,0.00015747,2]
[419748810,1775353854458,-500.0,0.00015749,2]
[419748811,1775353854467,-151.0,0.00015749,2]
[419748812,1775353854477,-150.0,0.00015751,2]
[419748813,1775353854487,-150.0,0.00015755,2]
[419748814,1775353854498,-150.0,0.0001576,2]
[419748815,1775353854508,-150.0,0.00015762,2]
[419748816,1775353854519,-440.0,0.00015763,2]
[419748817,1775353854530,-150.0,0.00015764,2]
[419748818,1775353854542,-150.0,0.00015767,2]
[419748819,1775353854552,-150.0,0.00015773,2]
[419748820,1775353854562,-150.0,0.00015776,2]
[419748821,1775353854572,-151.39,0.00015779,2]
[419748822,1775353854582,-151.39,0.00015779,2]
[419748823,1775353854593,-151.39,0.00015779,2]
[419748824,1775353854604,-151.39,0.00015779,2]
[419748825,1775353854614,-150.0,0.0001579,2]
[419748826,1775353854624,-150.0,0.0001579,2]
[419748827,1775353854634,-150.0,0.00015791,2]
[419748828,1775353854643,-150.0,0.00015799,2]
[419748829,1775353854653,-150.0,0.00015801,2]
[419748830,1775353854663,-2000.0,0.00015801,2]
[419748831,1775353854673,-150.0,0.00015804,2]
[419748832,1775353854684,-150.0,0.00015813,2]
[419748833,1775353854694,-150.0,0.00015825,2]
[419748834,1775353854705,-150.0,0.00015827,2]
[419748835,1775353854715,-150.0,0.00015834,2]
[419748836,1775353854725,-150.0,0.00015836,2]
[419748837,1775353854734,-150.0,0.00015836,2]
[419748838,1775353854743,-150.0,0.00015839,2]
[419748839,1775353854753,-97697.2091726,0.0001584,2]
[419748840,1775353854763,-2000.0,0.0001584,2]
[419748841,1775353854772,-2000.0,0.0001584,2]
[419748842,1775353854781,-2000.0,0.0001584,2]
[419748843,1775353854791,-150.0,0.00015847,2]
[419748844,1775353854800,-150.0,0.0001585,2]
[419748845,1775353854809,-150.0,0.0001585,2]
[419748846,1775353854819,-150.0,0.00015859,2]
[419748847,1775353854829,-150.0,0.00015864,2]
[419748848,1775353854840,-150.0,0.00015866,2]
[419748849,1775353854849,-150.0,0.00015868,2]
[419748850,1775353854858,-350.0,0.0001587,2]
[419748851,1775353854868,-500.0,0.00015871,2]
[419748852,1775353854877,-200.0,0.00015871,2]
[419748853,1775353854887,-500.0,0.00015872,2]
[419748854,1775353854896,-200.0,0.00015872,2]
[419748855,1775353854906,-500.0,0.00015872,2]
[419748856,1775353854915,-500.0,0.00015872,2]
[419748857,1775353854925,-500.0,0.00015872,2]
[419748858,1775353854934,-200.0,0.00015872,2]
[419748859,1775353854945,-200.0,0.00015872,2]
[419748860,1775353854956,-150.0,0.00015874,2]
[419748861,1775353854966,-150.0,0.00015881,2]
[419748862,1775353854975,-150.0,0.00015881,2]
[419748863,1775353854985,-150.0,0.00015889,2]
[419748864,1775353854994,-500.0,0.0001589,2]
[419748865,1775353855004,-500.0,0.0001589,2]
[419748866,1775353855013,-500.0,0.0001589,2]
[419748867,1775353855023,-500.0,0.0001589,2]
[419748868,1775353855032,-500.0,0.0001589,2]
[419748869,1775353855042,-500.0,0.0001589,2]
[419748870,1775353855051,-500.0,0.0001589,2]
[419748871,1775353855061,-500.0,0.0001589,2]
[419748872,1775353855070,-500.0,0.0001589,2]
[419748873,1775353855080,-500.0,0.0001589,2]
[419748874,1775353855090,-500.0,0.0001589,2]
[419748875,1775353855099,-500.0,0.0001589,2]
[419748876,1775353855109,-500.0,0.0001589,2]
[419748877,1775353855118,-500.0,0.0001589,2]
[419748878,1775353855128,-500.0,0.0001589,2]
[419748879,1775353855137,-500.0,0.0001589,2]
[419748880,1775353855147,-500.0,0.0001589,2]
[419748881,1775353855157,-500.0,0.0001589,2]
[419748882,1775353855166,-2500.0,0.0001589,2]
[419748883,1775353855176,-474.27272662,0.0001589,2]
[419748884,1775353855186,-704.40114749,0.0001589,2]
[419748885,1775353855195,-2006.22994168,0.0001589,2]
[419748886,1775353855205,-2500.0,0.0001589,2]
[419748887,1775353855215,-2251.35549923,0.0001589,2]
[419748888,1775353855224,-450.63286364,0.0001589,2]
[419748889,1775353855234,-1281.76329528,0.0001589,2]
[419748890,1775353855245,-2000.0,0.0001589,2]
[419748891,1775353855255,-2500.0,0.0001589,2]
[419748892,1775353855264,-2500.0,0.0001589,2]
[419748893,1775353855274,-2002.22534804,0.0001589,2]
[419748894,1775353855284,-2500.0,0.0001589,2]
[419748895,1775353855293,-2500.0,0.0001589,2]
[419748896,1775353855303,-2500.0,0.0001589,2]
[419748897,1775353855312,-2500.0,0.0001589,2]
[419748898,1775353855322,-4000.0,0.00015895,2]
[419748899,1775353855331,-150.0,0.00015899,2]
[419748900,1775353855340,-500.0,0.00015899,2]
[419748901,1775353855350,-500.0,0.00015899,2]
[419748902,1775353855359,-639.6,0.00015899,2]
[419748903,1775353855369,-500.0,0.00015899,2]
[419748904,1775353855379,-923.76,0.00015899,2]
[419748905,1775353855388,-506.02,0.00015899,2]
[419748906,1775353855399,-3100.69838594,0.000159,2]
[419748907,1775353855408,-4932.0313965,0.000159,2]
[419748908,1775353855418,-2517.89508536,0.000159,3]
[419748909,1775353855427,-2700.0,0.000159,5]
[419748910,1775353855437,-1971.0,0.000159,5]
[419748911,1775353855446,-1575.0,0.000159,5]
[419748912,1775353855456,-150.0,0.000159,2]
[419748913,1775353855465,-2000.0,0.00015901,2]
[419748914,1775353855475,-150.0,0.00015903,2]
[419748915,1775353855484,-150.0,0.00015904,2]
[419748916,1775353855494,-150.0,0.00015906,2]
[419748917,1775353855503,-164.0222601,0.00015907,2]
[419748918,1775353855513,-16565.2412983,0.00015916,2]
[419748919,1775353855522,-440.0,0.00015921,2]
[419748920,1775353855532,-150.0,0.00015923,2]
[419748921,1775353855541,-150.0,0.00015927,2]
[419748922,1775353855551,-150.0,0.00015927,2]
[419748923,1775353855560,-150.0,0.00015931,2]
[419748924,1775353855570,-150.0,0.00015936,2]
[419748925,1775353855580,-150.0,0.00015938,2]
[419748926,1775353855589,-6453.0,0.00015946,2]
[419748927,1775353855599,-1613.0,0.00015946,2]
[419748928,1775353855609,-150.0,0.00015948,2]
[419748929,1775353855618,-150.0,0.0001595,2]
[419748930,1775353855628,-2129.0,0.00015952,2]
[419748931,1775353855638,-3851.85620936,0.0001596,2]
[419748932,1775353855648,-789.25807902,0.00015966,2]
[419748933,1775353855657,-154.67984071,0.00015973,2]
[419748934,1775353855667,-153.46464447,0.00015973,2]
[419748935,1775353855676,-245.08435541,0.00015973,2]
[419748936,1775353855686,-150.17540857,0.00015973,2]
[419748937,1775353855696,-150.60277619,0.00015973,2]
[419748938,1775353855705,-151.01430456,0.00015973,2]
[419748939,1775353855715,-151.90807937,0.00015973,2]
[419748940,1775353855724,-155.5732344,0.00015973,2]
[419748941,1775353855734,-151.22967101,0.00015973,2]
[419748942,1775353855743,-287.38140471,0.00015973,2]
[419748943,1775353855753,-154.07899059,0.00015973,2]
[419748944,1775353855762,-154.24536523,0.00015973,2]
[419748945,1775353855774,-151.75828689,0.00015973,2]
[419748946,1775353855783,-1440132.1562014,0.00015976,2]
[419748947,1775353855794,-156.2930206,0.00015976,2]
[419748948,1775353855805,-32947.5341119,0.00015976,2]
[419748949,1775353855815,-147839.4865625,0.00015976,2]